[Event "*** SCC Grand Prix: Titled Tuesday Blitz"]
[Site "Chess.com"]
[Date "2020.07.07"]
[Round "9"]
[White "Infernal_XaM"]
[Black "GigaQuparadze"]
[Result "1-0"]
[WhiteElo "2963"]
[BlackElo "2886"]
[TimeControl "180+1"]
[EndTime "11:45:24 PDT"]
[Termination "Infernal_XaM won by resignation"]

1. d4 {[%clk 0:03:00.9]} 1... Nf6 {[%clk 0:02:59.5]} 2. c4 {[%clk 0:03:01.2]}
2... e6 {[%clk 0:02:59.7]} 3. Nf3 {[%clk 0:03:01.7]} 3... b6 {[%clk 0:02:59.8]}
4. g3 {[%clk 0:03:01.3]} 4... Bb4+ {[%clk 0:02:59.6]} 5. Bd2 {[%clk 0:03:00.3]}
5... c5 {[%clk 0:02:59.6]} 6. Bxb4 {[%clk 0:02:59.3]} 6... cxb4 {[%clk
0:02:59.3]} 7. a3 {[%clk 0:03:00]} 7... bxa3 {[%clk 0:02:58.8]} 8. Nxa3 {[%clk
0:02:58.8]} 8... O-O {[%clk 0:02:54.1]} 9. Bg2 {[%clk 0:02:59.3]} 9... Bb7
{[%clk 0:02:50.9]} 10. O-O {[%clk 0:02:59.9]} 10... a5 {[%clk 0:02:48.6]} 11.
Re1 {[%clk 0:03:00.1]} 11... Na6 {[%clk 0:02:47.8]} 12. Qd2 {[%clk 0:02:40.9]}
12... Rc8 {[%clk 0:02:42.3]} 13. Rac1 {[%clk 0:02:40.3]} 13... Nb4 {[%clk
0:02:36.9]} 14. h4 {[%clk 0:02:38.3]} 14... d6 {[%clk 0:02:32.7]} 15. Qf4 {[%clk
0:02:35.6]} 15... h6 {[%clk 0:02:30.4]} 16. Nb5 {[%clk 0:02:33]} 16... Ne8
{[%clk 0:02:25.7]} 17. b3 {[%clk 0:02:24]} 17... Ba6 {[%clk 0:02:20.4]} 18. Nc3
{[%clk 0:02:21.6]} 18... Nf6 {[%clk 0:02:17.8]} 19. Red1 {[%clk 0:02:16.7]}
19... d5 {[%clk 0:02:15.9]} 20. Ne5 {[%clk 0:02:08.8]} 20... dxc4 {[%clk
0:02:15.3]} 21. bxc4 {[%clk 0:02:09]} 21... Bxc4 {[%clk 0:02:14.5]} 22. g4
{[%clk 0:02:09.2]} 22... Nfd5 {[%clk 0:02:04.7]} 23. Nxd5 {[%clk 0:02:08.7]}
23... Nxd5 {[%clk 0:02:04.4]} 24. Qf3 {[%clk 0:02:04.1]} 24... b5 {[%clk
0:02:01.8]} 25. e4 {[%clk 0:02:02.3]} 25... Nb4 {[%clk 0:02:01.5]} 26. Qg3
{[%clk 0:02:00.3]} 26... Be2 {[%clk 0:01:32.7]} 27. Rxc8 {[%clk 0:01:57]} 27...
Qxc8 {[%clk 0:01:33.6]} 28. Re1 {[%clk 0:01:57.4]} 28... Qc2 {[%clk 0:01:33.3]}
29. g5 {[%clk 0:01:57.8]} 29... hxg5 {[%clk 0:01:33]} 30. hxg5 {[%clk
0:01:57.8]} 30... Nd3 {[%clk 0:01:32.5]} 31. Rxe2 {[%clk 0:01:54.7]} 31... Qxe2
{[%clk 0:01:26.8]} 32. Nxd3 {[%clk 0:01:55.2]} 32... Qd1+ {[%clk 0:01:17.9]} 33.
Bf1 {[%clk 0:01:53.5]} 33... a4 {[%clk 0:01:07.2]} 34. g6 {[%clk 0:01:53.9]}
34... Qh5 {[%clk 0:00:58.5]} 35. Nf4 {[%clk 0:01:50.5]} 35... Qh6 {[%clk
0:00:54.6]} 36. Bh3 {[%clk 0:01:50.8]} 36... a3 {[%clk 0:00:50.4]} 37. gxf7+
{[%clk 0:01:50.2]} 37... Kh7 {[%clk 0:00:49.3]} 38. Bxe6 {[%clk 0:01:48.8]}
38... g5 {[%clk 0:00:35.4]} 39. Bf5+ {[%clk 0:01:45.3]} 39... Kg7 {[%clk
0:00:35.2]} 40. Ne6+ {[%clk 0:01:45.1]} 40... Kxf7 {[%clk 0:00:35.4]} 41. Qc7+
{[%clk 0:01:38.2]} 41... Kg8 {[%clk 0:00:35.3]} 42. Nxf8 {[%clk 0:01:32]} 42...
a2 {[%clk 0:00:35.5]} 43. Be6+ {[%clk 0:01:27.1]} 43... Kh8 {[%clk 0:00:31.9]}
44. Qe5+ {[%clk 0:01:27]} 44... Qg7 {[%clk 0:00:28.9]} 45. Qxg7+ {[%clk
0:01:27.6]} 1-0

[Event "*** SCC Grand Prix: Titled Tuesday Blitz"]
[Site "Chess.com"]
[Date "2020.07.07"]
[Round "9"]
[White "Vandros57"]
[Black "PauloCesarCosta_sad"]
[Result "1/2-1/2"]
[WhiteElo "2109"]
[BlackElo "2199"]
[TimeControl "180+1"]
[EndTime "11:45:24 PDT"]
[Termination "Game drawn by agreement"]

1. d4 {[%clk 0:03:00.9]} 1... d5 {[%clk 0:02:59.5]} 2. Nf3 {[%clk 0:02:59.4]}
2... Nf6 {[%clk 0:02:58.6]} 3. c4 {[%clk 0:02:58.7]} 3... c6 {[%clk 0:02:58.5]}
4. e3 {[%clk 0:02:56.8]} 4... e6 {[%clk 0:02:58.2]} 5. Nbd2 {[%clk 0:02:55.9]}
5... Nbd7 {[%clk 0:02:57.6]} 6. Bd3 {[%clk 0:02:55]} 6... Bd6 {[%clk 0:02:55]}
7. O-O {[%clk 0:02:54.5]} 7... O-O {[%clk 0:02:55]} 8. e4 {[%clk 0:02:51.2]}
8... dxe4 {[%clk 0:02:55.1]} 9. Nxe4 {[%clk 0:02:50.8]} 9... Nxe4 {[%clk
0:02:55.5]} 10. Bxe4 {[%clk 0:02:50.4]} 10... h6 {[%clk 0:02:55.6]} 11. Bc2
{[%clk 0:02:43.6]} 11... Qe7 {[%clk 0:02:23.6]} 12. Qd3 {[%clk 0:02:40.3]} 12...
f5 {[%clk 0:02:14.7]} 13. Re1 {[%clk 0:02:35.1]} 13... b6 {[%clk 0:02:08]} 14.
d5 {[%clk 0:02:25.6]} 14... cxd5 {[%clk 0:01:55.3]} 15. cxd5 {[%clk 0:02:22.9]}
15... e5 {[%clk 0:01:55.2]} 16. Nd4 {[%clk 0:02:12.6]} 16... Nc5 {[%clk
0:01:54.8]} 17. Qh3 {[%clk 0:01:56.5]} 17... Qf7 {[%clk 0:01:46.7]} 18. Nb5
{[%clk 0:01:35.6]} 18... Qd7 {[%clk 0:01:42.7]} 19. Nxd6 {[%clk 0:01:32.9]}
19... Qxd6 {[%clk 0:01:43]} 20. Be3 {[%clk 0:01:23.2]} 20... Qxd5 {[%clk
0:01:34.7]} 21. Rad1 {[%clk 0:01:05.7]} 21... Qc6 {[%clk 0:01:21.7]} 22. Bxc5
{[%clk 0:00:59.8]} 22... Qxc5 {[%clk 0:01:16.9]} 23. Bb3+ {[%clk 0:00:55.3]}
23... Kh8 {[%clk 0:01:11.3]} 24. Rd5 {[%clk 0:00:51.3]} 24... Qb4 {[%clk
0:01:06.4]} 25. Rdxe5 {[%clk 0:00:49.3]} 25... Bd7 {[%clk 0:01:01.4]} 26. Re7
{[%clk 0:00:45.9]} 26... Rae8 {[%clk 0:00:55.6]} 27. Rxe8 {[%clk 0:00:36.2]}
27... Rxe8 {[%clk 0:00:55.7]} 28. Rxe8+ {[%clk 0:00:35.5]} 28... Bxe8 {[%clk
0:00:55.5]} 29. Qe3 {[%clk 0:00:27.8]} 1/2-1/2

[Event "*** SCC Grand Prix: Titled Tuesday Blitz"]
[Site "Chess.com"]
[Date "2020.07.07"]
[Round "9"]
[White "Manukyan_Artak"]
[Black "jonaszmb"]
[Result "1-0"]
[WhiteElo "2372"]
[BlackElo "2460"]
[TimeControl "180+1"]
[EndTime "11:45:31 PDT"]
[Termination "Manukyan_Artak won by checkmate"]

1. e4 {[%clk 0:03:00.9]} 1... c5 {[%clk 0:03:00.2]} 2. Nf3 {[%clk 0:03:00.6]}
2... d6 {[%clk 0:03:00.6]} 3. Bb5+ {[%clk 0:02:59.5]} 3... Bd7 {[%clk
0:03:00.2]} 4. Bxd7+ {[%clk 0:02:59.4]} 4... Qxd7 {[%clk 0:03:01.1]} 5. c4
{[%clk 0:03:00.1]} 5... Nf6 {[%clk 0:02:55.3]} 6. Nc3 {[%clk 0:03:00]} 6... g6
{[%clk 0:02:55.1]} 7. d4 {[%clk 0:02:54.4]} 7... cxd4 {[%clk 0:02:56]} 8. Nxd4
{[%clk 0:02:54.9]} 8... Bg7 {[%clk 0:02:56.1]} 9. f3 {[%clk 0:02:54.4]} 9... O-O
{[%clk 0:02:55.9]} 10. Be3 {[%clk 0:02:54.4]} 10... Nc6 {[%clk 0:02:53.7]} 11.
O-O {[%clk 0:02:53]} 11... a6 {[%clk 0:02:53.8]} 12. a4 {[%clk 0:02:52.3]} 12...
Rac8 {[%clk 0:02:48.3]} 13. b3 {[%clk 0:02:51.7]} 13... Rfd8 {[%clk 0:02:47.2]}
14. Qd2 {[%clk 0:02:49.9]} 14... e6 {[%clk 0:02:46.4]} 15. Rfd1 {[%clk
0:02:48.8]} 15... d5 {[%clk 0:02:33.5]} 16. Nxc6 {[%clk 0:02:44.9]} 16... bxc6
{[%clk 0:02:32.3]} 17. exd5 {[%clk 0:02:26]} 17... cxd5 {[%clk 0:02:29.4]} 18.
cxd5 {[%clk 0:02:19.5]} 18... Nxd5 {[%clk 0:01:40.6]} 19. Nxd5 {[%clk
0:02:14.8]} 19... Qxd5 {[%clk 0:01:17.2]} 20. Qxd5 {[%clk 0:02:13.9]} 20... Rxd5
{[%clk 0:01:10.1]} 21. Rac1 {[%clk 0:01:58.5]} 21... Rxc1 {[%clk 0:00:27.3]} 22.
Rxc1 {[%clk 0:01:55.9]} 22... h5 {[%clk 0:00:13.6]} 23. b4 {[%clk 0:01:52.5]}
23... Bd4 {[%clk 0:00:12.9]} 24. Kf2 {[%clk 0:01:43.4]} 24... Kg7 {[%clk
0:00:11.7]} 25. Rb1 {[%clk 0:01:40.3]} 25... Bxe3+ {[%clk 0:00:03.7]} 26. Kxe3
{[%clk 0:01:40]} 26... Rd6 {[%clk 0:00:03.1]} 27. b5 {[%clk 0:01:39.2]} 27...
axb5 {[%clk 0:00:04]} 28. axb5 {[%clk 0:01:40]} 28... Rb6 {[%clk 0:00:04.2]} 29.
Kd4 {[%clk 0:01:40.2]} 29... Kf6 {[%clk 0:00:03.5]} 30. Kc5 {[%clk 0:01:40.3]}
30... Rb8 {[%clk 0:00:03.7]} 31. Kd6 {[%clk 0:01:37.6]} 31... Rd8+ {[%clk
0:00:02.9]} 32. Kc7 {[%clk 0:01:37.2]} 32... Rd2 {[%clk 0:00:03.1]} 33. b6
{[%clk 0:01:35.6]} 33... Rc2+ {[%clk 0:00:03.2]} 34. Kd8 {[%clk 0:01:33.7]}
34... Rd2+ {[%clk 0:00:02.2]} 35. Ke8 {[%clk 0:01:31.8]} 35... Ra2 {[%clk
0:00:01.2]} 36. b7 {[%clk 0:01:30.6]} 36... Rxg2 {[%clk 0:00:02.1]} 37. b8=Q
{[%clk 0:01:30.4]} 37... Kf5 {[%clk 0:00:02.4]} 38. Rb5+ {[%clk 0:01:28.7]}
38... Kf6 {[%clk 0:00:02]} 39. Qe5# {[%clk 0:01:28.4]} 1-0

[Event "*** SCC Grand Prix: Titled Tuesday Blitz"]
[Site "Chess.com"]
[Date "2020.07.07"]
[Round "9"]
[White "grzechu96"]
[Black "Durarbayli"]
[Result "0-1"]
[WhiteElo "2670"]
[BlackElo "2814"]
[TimeControl "180+1"]
[EndTime "11:45:33 PDT"]
[Termination "Durarbayli won by resignation"]

1. e4 {[%clk 0:03:00.9]} 1... c5 {[%clk 0:02:59.3]} 2. Nf3 {[%clk 0:03:00.9]}
2... d6 {[%clk 0:02:59.5]} 3. d4 {[%clk 0:02:57]} 3... cxd4 {[%clk 0:02:59.6]}
4. Qxd4 {[%clk 0:02:57.9]} 4... Nc6 {[%clk 0:02:56.8]} 5. Qe3 {[%clk 0:02:58]}
5... g6 {[%clk 0:02:52.2]} 6. Be2 {[%clk 0:02:57]} 6... Bg7 {[%clk 0:02:29.9]}
7. O-O {[%clk 0:02:56.6]} 7... Nf6 {[%clk 0:02:30]} 8. h3 {[%clk 0:02:56.8]}
8... O-O {[%clk 0:02:29.7]} 9. Rd1 {[%clk 0:02:57.2]} 9... Be6 {[%clk
0:02:21.5]} 10. Nc3 {[%clk 0:02:43.3]} 10... Qa5 {[%clk 0:02:16]} 11. a3 {[%clk
0:02:39.4]} 11... Rfc8 {[%clk 0:02:15.5]} 12. Rb1 {[%clk 0:02:36.9]} 12... Ne5
{[%clk 0:02:04.4]} 13. b4 {[%clk 0:02:04]} 13... Nxf3+ {[%clk 0:02:00.6]} 14.
Bxf3 {[%clk 0:02:01.6]} 14... Qc7 {[%clk 0:01:59.2]} 15. Bb2 {[%clk 0:01:48.2]}
15... Nd7 {[%clk 0:01:58.5]} 16. Nb5 {[%clk 0:00:59.5]} 16... Qxc2 {[%clk
0:01:53.4]} 17. Bxg7 {[%clk 0:00:57.3]} 17... Kxg7 {[%clk 0:01:54.3]} 18. Nxa7
{[%clk 0:00:55]} 18... Rc3 {[%clk 0:01:38.4]} 19. Qd4+ {[%clk 0:00:51.9]} 19...
Ne5 {[%clk 0:01:38.3]} 20. Nb5 {[%clk 0:00:39.4]} 20... Rxf3 {[%clk 0:01:15.3]}
21. gxf3 {[%clk 0:00:36.2]} 21... Qe2 {[%clk 0:01:15.7]} 22. Qe3 {[%clk
0:00:02.3]} 22... Qxb5 {[%clk 0:01:09]} 23. f4 {[%clk 0:00:01.7]} 23... Nc4
{[%clk 0:01:06.6]} 24. Qd4+ {[%clk 0:00:01.6]} 24... f6 {[%clk 0:01:06.7]} 25.
Rd3 {[%clk 0:00:01.2]} 25... Nxa3 {[%clk 0:01:02.6]} 26. Ra1 {[%clk 0:00:01.2]}
26... Nc2 {[%clk 0:01:00.9]} 0-1

[Event "*** SCC Grand Prix: Titled Tuesday Blitz"]
[Site "Chess.com"]
[Date "2020.07.07"]
[Round "9"]
[White "MiroVlasenko"]
[Black "2346PL"]
[Result "1-0"]
[WhiteElo "2613"]
[BlackElo "2407"]
[TimeControl "180+1"]
[EndTime "11:45:35 PDT"]
[Termination "MiroVlasenko won by resignation"]

1. d4 {[%clk 0:03:00.9]} 1... f5 {[%clk 0:02:59.8]} 2. Bf4 {[%clk 0:03:00.6]}
2... e6 {[%clk 0:02:58.5]} 3. e3 {[%clk 0:03:00.9]} 3... Be7 {[%clk 0:02:59]} 4.
Nf3 {[%clk 0:03:00.8]} 4... Nf6 {[%clk 0:02:59.5]} 5. h3 {[%clk 0:02:57.6]} 5...
b6 {[%clk 0:02:58.2]} 6. Nbd2 {[%clk 0:02:57.2]} 6... Bb7 {[%clk 0:02:57.6]} 7.
Bd3 {[%clk 0:02:56.6]} 7... O-O {[%clk 0:02:56.7]} 8. c3 {[%clk 0:02:54.7]} 8...
h6 {[%clk 0:02:54.5]} 9. Qe2 {[%clk 0:02:54.5]} 9... Ne4 {[%clk 0:02:50]} 10.
O-O-O {[%clk 0:02:52.4]} 10... d6 {[%clk 0:02:46.8]} 11. g4 {[%clk 0:02:51.1]}
11... Nxd2 {[%clk 0:02:45.3]} 12. Kxd2 {[%clk 0:02:43.2]} 12... Nd7 {[%clk
0:02:38.1]} 13. gxf5 {[%clk 0:02:41.8]} 13... e5 {[%clk 0:02:27.6]} 14. dxe5
{[%clk 0:02:13]} 14... dxe5 {[%clk 0:02:28.5]} 15. Bg3 {[%clk 0:02:10.6]} 15...
Nc5 {[%clk 0:02:09.4]} 16. Nxe5 {[%clk 0:02:09.4]} 16... Bxh1 {[%clk 0:01:34.8]}
17. Rxh1 {[%clk 0:02:06.7]} 17... Qd5 {[%clk 0:01:31.6]} 18. e4 {[%clk
0:02:04.9]} 18... Qd8 {[%clk 0:01:21.9]} 19. Kc2 {[%clk 0:02:02.7]} 19... Bf6
{[%clk 0:01:20.2]} 20. Bc4+ {[%clk 0:01:57.8]} 20... Kh7 {[%clk 0:01:20.4]} 21.
Ng6 {[%clk 0:01:57]} 21... Re8 {[%clk 0:01:18.5]} 22. e5 {[%clk 0:01:57.3]}
22... Qd7 {[%clk 0:01:08.7]} 23. Qg4 {[%clk 0:01:52.9]} 23... Bg5 {[%clk
0:01:01]} 24. Rd1 {[%clk 0:01:45.6]} 24... Qa4+ {[%clk 0:01:00.9]} 25. Bb3
{[%clk 0:01:45.9]} 25... Qxg4 {[%clk 0:00:58.8]} 26. hxg4 {[%clk 0:01:46.3]}
26... Nxb3 {[%clk 0:00:53.2]} 27. axb3 {[%clk 0:01:44.2]} 27... Rad8 {[%clk
0:00:54.1]} 28. e6 {[%clk 0:01:38.9]} 28... Rxd1 {[%clk 0:00:52.5]} 29. Kxd1
{[%clk 0:01:38.6]} 29... Bf6 {[%clk 0:00:51.3]} 30. Bxc7 {[%clk 0:01:37.1]}
30... b5 {[%clk 0:00:49.6]} 31. Kc2 {[%clk 0:01:31.5]} 31... b4 {[%clk
0:00:46.9]} 32. Nf4 {[%clk 0:01:28.1]} 32... bxc3 {[%clk 0:00:31.1]} 33. bxc3
{[%clk 0:01:26.7]} 33... Rc8 {[%clk 0:00:29.6]} 34. Nd5 {[%clk 0:01:25.1]} 34...
Kg8 {[%clk 0:00:26.1]} 35. c4 {[%clk 0:01:21.7]} 35... a6 {[%clk 0:00:25.3]} 36.
Kd3 {[%clk 0:01:17.8]} 36... Bg5 {[%clk 0:00:22.5]} 37. f3 {[%clk 0:01:17.1]}
37... Bf6 {[%clk 0:00:22.7]} 38. c5 {[%clk 0:01:14.3]} 38... Bg5 {[%clk
0:00:21.9]} 39. Kc4 {[%clk 0:01:14.1]} 39... Bf6 {[%clk 0:00:22.3]} 40. c6
{[%clk 0:01:13.8]} 40... Kf8 {[%clk 0:00:21.6]} 41. Kc5 {[%clk 0:01:13.7]} 41...
Ke8 {[%clk 0:00:21.7]} 42. Kb6 {[%clk 0:01:12.7]} 1-0

[Event "*** SCC Grand Prix: Titled Tuesday Blitz"]
[Site "Chess.com"]
[Date "2020.07.07"]
[Round "9"]
[White "OnePeculiarConundrum"]
[Black "ElCoachRene"]
[Result "1-0"]
[WhiteElo "2356"]
[BlackElo "2215"]
[TimeControl "180+1"]
[EndTime "11:45:42 PDT"]
[Termination "OnePeculiarConundrum won by resignation"]

1. e4 {[%clk 0:03:00.9]} 1... Nc6 {[%clk 0:02:59.2]} 2. d4 {[%clk 0:02:58.1]}
2... d5 {[%clk 0:02:59]} 3. e5 {[%clk 0:02:57.2]} 3... f6 {[%clk 0:02:59]} 4. f4
{[%clk 0:02:54.9]} 4... Nh6 {[%clk 0:02:58.4]} 5. Nf3 {[%clk 0:02:52]} 5... Bg4
{[%clk 0:02:58.7]} 6. h3 {[%clk 0:02:47.5]} 6... Bxf3 {[%clk 0:02:56.4]} 7. gxf3
{[%clk 0:02:47.3]} 7... Nf5 {[%clk 0:02:51.9]} 8. c3 {[%clk 0:02:46]} 8... e6
{[%clk 0:02:49.6]} 9. Bd3 {[%clk 0:02:34.3]} 9... fxe5 {[%clk 0:02:48.6]} 10.
Bxf5 {[%clk 0:02:33.7]} 10... Qh4+ {[%clk 0:02:45.8]} 11. Ke2 {[%clk 0:02:33.1]}
11... exf5 {[%clk 0:02:42.3]} 12. fxe5 {[%clk 0:02:32.9]} 12... Be7 {[%clk
0:02:24.8]} 13. Qe1 {[%clk 0:02:28.5]} 13... Qh5 {[%clk 0:02:17.6]} 14. Nd2
{[%clk 0:02:22.5]} 14... Bh4 {[%clk 0:02:13.5]} 15. Qg1 {[%clk 0:02:20.4]} 15...
g6 {[%clk 0:02:09.7]} 16. Nf1 {[%clk 0:02:19.3]} 16... O-O-O {[%clk 0:02:04]}
17. Ng3 {[%clk 0:02:18.1]} 17... Bxg3 {[%clk 0:01:57]} 18. Qxg3 {[%clk 0:02:19]}
18... Na5 {[%clk 0:01:45.4]} 19. Qg5 {[%clk 0:02:15]} 19... Qxg5 {[%clk
0:01:42.3]} 20. Bxg5 {[%clk 0:02:15.9]} 20... Rde8 {[%clk 0:01:41.6]} 21. b3
{[%clk 0:02:15.3]} 21... Nc6 {[%clk 0:01:39.8]} 22. Kd3 {[%clk 0:02:12.1]} 22...
Nd8 {[%clk 0:01:39.5]} 23. h4 {[%clk 0:02:10.9]} 23... Ne6 {[%clk 0:01:39.1]}
24. Bd2 {[%clk 0:02:10.3]} 24... c5 {[%clk 0:01:25.5]} 25. Rag1 {[%clk
0:02:04.9]} 25... cxd4 {[%clk 0:01:22.3]} 26. cxd4 {[%clk 0:02:04.6]} 26... Kd7
{[%clk 0:01:22.5]} 27. h5 {[%clk 0:02:02.9]} 27... Rhg8 {[%clk 0:01:17.6]} 28.
hxg6 {[%clk 0:02:02.2]} 28... hxg6 {[%clk 0:01:18.2]} 29. Bg5 {[%clk 0:01:55.3]}
29... Nxg5 {[%clk 0:00:51.7]} 30. Rxg5 {[%clk 0:01:56.2]} 30... Ke6 {[%clk
0:00:50.8]} 31. Rh6 {[%clk 0:01:51.5]} 31... Kf7 {[%clk 0:00:48.1]} 32. f4
{[%clk 0:01:48.7]} 32... Rg7 {[%clk 0:00:45.7]} 33. Rg1 {[%clk 0:01:47.1]} 33...
Rc8 {[%clk 0:00:43.7]} 34. Rh2 {[%clk 0:01:44]} 34... Rc6 {[%clk 0:00:41]} 35.
Rc2 {[%clk 0:01:41.3]} 35... Ke6 {[%clk 0:00:39.4]} 36. Rxc6+ {[%clk 0:01:39.3]}
36... bxc6 {[%clk 0:00:40.3]} 37. Kc3 {[%clk 0:01:38.6]} 37... Kf7 {[%clk
0:00:26.2]} 38. Kb4 {[%clk 0:01:38.1]} 38... Rh7 {[%clk 0:00:24.9]} 39. Kc5
{[%clk 0:01:37.8]} 39... Rh2 {[%clk 0:00:23.5]} 40. Kxc6 {[%clk 0:01:37.7]}
40... Rxa2 {[%clk 0:00:22.9]} 41. Kxd5 {[%clk 0:01:37.9]} 41... Rb2 {[%clk
0:00:22.3]} 42. Ra1 {[%clk 0:01:35]} 42... g5 {[%clk 0:00:18.5]} 43. fxg5 {[%clk
0:01:32]} 43... Kg6 {[%clk 0:00:18.6]} 44. e6 {[%clk 0:01:31.9]} 44... Rxb3
{[%clk 0:00:18]} 45. e7 {[%clk 0:01:31.8]} 45... Re3 {[%clk 0:00:17.6]} 46. Rxa7
{[%clk 0:01:31]} 46... Kxg5 {[%clk 0:00:16.6]} 47. Kd6 {[%clk 0:01:31]} 47... f4
{[%clk 0:00:15.9]} 48. Ra8 {[%clk 0:01:31.2]} 48... f3 {[%clk 0:00:14.1]} 49.
e8=Q {[%clk 0:01:31.4]} 49... Rxe8 {[%clk 0:00:13.6]} 50. Rxe8 {[%clk
0:01:32.3]} 50... Kg4 {[%clk 0:00:12.4]} 51. Rf8 {[%clk 0:01:32.6]} 51... Kg3
{[%clk 0:00:12.1]} 52. d5 {[%clk 0:01:32.8]} 52... f2 {[%clk 0:00:12.6]} 53.
Rxf2 {[%clk 0:01:32.8]} 53... Kxf2 {[%clk 0:00:12.8]} 54. Kc7 {[%clk 0:01:33.7]}
54... Ke3 {[%clk 0:00:13.2]} 55. d6 {[%clk 0:01:34.6]} 55... Kd4 {[%clk
0:00:13.9]} 56. d7 {[%clk 0:01:35.5]} 56... Ke5 {[%clk 0:00:14.4]} 57. d8=Q
{[%clk 0:01:36.4]} 1-0

[Event "*** SCC Grand Prix: Titled Tuesday Blitz"]
[Site "Chess.com"]
[Date "2020.07.07"]
[Round "9"]
[White "Flawless_Fighter"]
[Black "Tsyhanchuk_Stanislav"]
[Result "1-0"]
[WhiteElo "2577"]
[BlackElo "2428"]
[TimeControl "180+1"]
[EndTime "11:45:43 PDT"]
[Termination "Flawless_Fighter won on time"]

1. e4 {[%clk 0:03:00.9]} 1... c5 {[%clk 0:03:00.1]} 2. Nf3 {[%clk 0:03:01.5]}
2... Nc6 {[%clk 0:02:59.2]} 3. Bb5 {[%clk 0:03:02]} 3... d6 {[%clk 0:02:58.3]}
4. O-O {[%clk 0:03:01.1]} 4... Bd7 {[%clk 0:02:58.1]} 5. Re1 {[%clk 0:03:01.5]}
5... a6 {[%clk 0:02:55.5]} 6. Bxc6 {[%clk 0:03:00.1]} 6... Bxc6 {[%clk
0:02:56.4]} 7. d4 {[%clk 0:03:00.7]} 7... cxd4 {[%clk 0:02:51.5]} 8. Nxd4 {[%clk
0:03:01.6]} 8... Bd7 {[%clk 0:02:50.1]} 9. c3 {[%clk 0:03:01.9]} 9... Nf6 {[%clk
0:02:49.4]} 10. c4 {[%clk 0:03:02]} 10... e6 {[%clk 0:02:46.2]} 11. Nc3 {[%clk
0:03:02.4]} 11... Be7 {[%clk 0:02:46]} 12. Be3 {[%clk 0:02:59.7]} 12... O-O
{[%clk 0:02:45.5]} 13. f3 {[%clk 0:03:00.2]} 13... Rc8 {[%clk 0:02:45.1]} 14.
Qe2 {[%clk 0:02:57.2]} 14... Qc7 {[%clk 0:02:41.5]} 15. Rac1 {[%clk 0:02:52.3]}
15... Kh8 {[%clk 0:02:18.1]} 16. b3 {[%clk 0:02:51.9]} 16... Qa5 {[%clk
0:02:16.2]} 17. Kh1 {[%clk 0:02:50.4]} 17... Rfe8 {[%clk 0:02:06.3]} 18. Bd2
{[%clk 0:02:44.9]} 18... Qh5 {[%clk 0:02:01.3]} 19. Be3 {[%clk 0:02:38.5]} 19...
d5 {[%clk 0:01:48.4]} 20. g4 {[%clk 0:02:18.2]} 20... Qh3 {[%clk 0:01:45.5]} 21.
e5 {[%clk 0:02:17.1]} 21... Ng8 {[%clk 0:01:36.5]} 22. cxd5 {[%clk 0:02:16.9]}
22... Ba3 {[%clk 0:01:25.4]} 23. Rc2 {[%clk 0:01:53.8]} 23... Bb4 {[%clk
0:01:16.8]} 24. dxe6 {[%clk 0:01:42.5]} 24... fxe6 {[%clk 0:01:16.2]} 25. Rec1
{[%clk 0:01:40.3]} 25... Ne7 {[%clk 0:01:08.4]} 26. Qg2 {[%clk 0:01:22.1]} 26...
Qh4 {[%clk 0:00:56]} 27. Ne4 {[%clk 0:01:09.2]} 27... Rxc2 {[%clk 0:00:50.7]}
28. Nxc2 {[%clk 0:01:09.8]} 28... h6 {[%clk 0:00:12.2]} 29. Bf2 {[%clk 0:01:06]}
29... Qxf2 {[%clk 0:00:03.7]} 30. Qxf2 {[%clk 0:01:05.2]} 30... Ba5 {[%clk
0:00:01.7]} 31. Nd6 {[%clk 0:00:58.5]} 1-0

[Event "*** SCC Grand Prix: Titled Tuesday Blitz"]
[Site "Chess.com"]
[Date "2020.07.07"]
[Round "9"]
[White "Angel_Hranitel_37"]
[Black "nikitakhoroshev"]
[Result "0-1"]
[WhiteElo "2379"]
[BlackElo "2509"]
[TimeControl "180+1"]
[EndTime "11:45:44 PDT"]
[Termination "nikitakhoroshev won by checkmate"]

1. d4 {[%clk 0:03:00]} 1... Nf6 {[%clk 0:02:58.4]} 2. Nf3 {[%clk 0:03:00.2]}
2... c5 {[%clk 0:02:56.6]} 3. d5 {[%clk 0:03:00]} 3... d6 {[%clk 0:02:56]} 4. c4
{[%clk 0:03:00.3]} 4... g6 {[%clk 0:02:56.3]} 5. Qc2 {[%clk 0:03:00.4]} 5... Bg7
{[%clk 0:02:57.2]} 6. e4 {[%clk 0:03:00.6]} 6... O-O {[%clk 0:02:57.5]} 7. Nc3
{[%clk 0:03:00.9]} 7... e6 {[%clk 0:02:57.6]} 8. Be2 {[%clk 0:02:56.7]} 8...
exd5 {[%clk 0:02:57.2]} 9. cxd5 {[%clk 0:02:57.6]} 9... Re8 {[%clk 0:02:57.3]}
10. Nd2 {[%clk 0:02:57.1]} 10... a6 {[%clk 0:02:52.4]} 11. a4 {[%clk 0:02:56.3]}
11... Nh5 {[%clk 0:02:48.5]} 12. Bxh5 {[%clk 0:02:48.3]} 12... gxh5 {[%clk
0:02:47.5]} 13. O-O {[%clk 0:02:48]} 13... Nd7 {[%clk 0:02:46.9]} 14. f4 {[%clk
0:02:46.2]} 14... Nf6 {[%clk 0:02:45]} 15. Re1 {[%clk 0:02:32]} 15... Ng4 {[%clk
0:02:43.3]} 16. Nf3 {[%clk 0:02:31.6]} 16... Bd4+ {[%clk 0:02:42.7]} 17. Nxd4
{[%clk 0:02:21.1]} 17... cxd4 {[%clk 0:02:41.9]} 18. Ne2 {[%clk 0:01:43.8]}
18... Qh4 {[%clk 0:02:39.3]} 19. Bd2 {[%clk 0:00:53]} 19... Qxh2+ {[%clk
0:02:26]} 20. Kf1 {[%clk 0:00:53.3]} 20... Qh1+ {[%clk 0:02:12.4]} 21. Ng1
{[%clk 0:00:53.5]} 21... Qh4 {[%clk 0:02:12.7]} 22. Nh3 {[%clk 0:00:20.4]} 22...
Qg3 {[%clk 0:01:55.5]} 23. Ra3 {[%clk 0:00:12.5]} 23... Qh2 {[%clk 0:01:32.6]}
24. Qd3 {[%clk 0:00:08.9]} 24... f5 {[%clk 0:01:25.3]} 25. exf5 {[%clk
0:00:04.1]} 25... Rxe1+ {[%clk 0:01:22.8]} 26. Bxe1 {[%clk 0:00:04.3]} 26...
Ne3+ {[%clk 0:01:22.3]} 27. Ke2 {[%clk 0:00:04.8]} 27... Qxg2+ {[%clk
0:01:21.9]} 28. Nf2 {[%clk 0:00:05.3]} 28... Bxf5 {[%clk 0:01:21.5]} 29. Qxd4
{[%clk 0:00:04.7]} 29... Nc2 {[%clk 0:01:16.4]} 30. Qc3 {[%clk 0:00:02.6]} 30...
Re8+ {[%clk 0:01:15.9]} 31. Kd2 {[%clk 0:00:02.1]} 31... Qxd5+ {[%clk 0:01:16]}
32. Kc1 {[%clk 0:00:01.2]} 32... Rxe1+ {[%clk 0:01:15.6]} 33. Nd1 {[%clk
0:00:01.8]} 33... Qxd1# {[%clk 0:01:14.2]} 0-1